[Event "Early-Titled-Tuesday-Blitz-February-13-2024"]
[Site "Chess.com"]
[Date "2024.02.13"]
[Round "9"]
[White "PavelShkapenko"]
[Black "Dinosaurio_1975"]
[Result "1-0"]
[WhiteElo "2753"]
[BlackElo "2591"]
[TimeControl "180+1"]
[EndTime "9:47:49 PST"]
[Termination "PavelShkapenko won by resignation"]

1. e4 {[%clk 0:02:56.4]} 1... c6 {[%clk 0:02:57]} 2. d4 {[%clk 0:02:56.4]} 2...
d5 {[%clk 0:02:57.9]} 3. e5 {[%clk 0:02:56.9]} 3... Bf5 {[%clk 0:02:56.9]} 4. h4
{[%clk 0:02:57.5]} 4... h5 {[%clk 0:02:56.1]} 5. Bd3 {[%clk 0:02:58]} 5... Bxd3
{[%clk 0:02:54.5]} 6. Qxd3 {[%clk 0:02:58.9]} 6... Qa5+ {[%clk 0:02:54.2]} 7.
Nd2 {[%clk 0:02:59.1]} 7... e6 {[%clk 0:02:53.7]} 8. Ne2 {[%clk 0:02:58.7]} 8...
Nh6 {[%clk 0:02:53.2]} 9. O-O {[%clk 0:02:55.8]} 9... Nf5 {[%clk 0:02:52.1]} 10.
Nf3 {[%clk 0:02:55.9]} 10... Nd7 {[%clk 0:02:51.7]} 11. Ng3 {[%clk 0:02:54.6]}
11... g6 {[%clk 0:02:32.5]} 12. Nxf5 {[%clk 0:02:46.2]} 12... gxf5 {[%clk
0:02:26.4]} 13. Bg5 {[%clk 0:02:46.2]} 13... Qb5 {[%clk 0:02:23]} 14. Qd2 {[%clk
0:02:45.4]} 14... c5 {[%clk 0:02:18]} 15. b3 {[%clk 0:02:17.7]} 15... Rc8 {[%clk
0:02:08.1]} 16. c4 {[%clk 0:02:17]} 16... dxc4 {[%clk 0:02:02.7]} 17. d5 {[%clk
0:02:17.5]} 17... Nb6 {[%clk 0:01:08.5]} 18. dxe6 {[%clk 0:02:14.9]} 18... fxe6
{[%clk 0:01:08.1]} 19. Bf6 {[%clk 0:02:14.2]} 19... Rg8 {[%clk 0:01:07.6]} 20.
Ng5 {[%clk 0:02:14.3]} 20... Qc6 {[%clk 0:00:49.6]} 21. Qe2 {[%clk 0:02:14.2]}
21... Nd5 {[%clk 0:00:48.8]} 22. Qxh5+ {[%clk 0:02:13.7]} 22... Kd7 {[%clk
0:00:48.7]} 23. Qf7+ {[%clk 0:02:07.6]} 23... Be7 {[%clk 0:00:48.5]} 24. Bxe7
{[%clk 0:02:07.7]} 24... Nxe7 {[%clk 0:00:48.1]} 25. Rfd1+ {[%clk 0:02:03.3]}
25... Kc7 {[%clk 0:00:42]} 26. Qxe7+ {[%clk 0:02:02.7]} 26... Kb8 {[%clk
0:00:42.4]} 27. bxc4 {[%clk 0:02:00.3]} 27... Qa4 {[%clk 0:00:38.7]} 28. Qxe6
{[%clk 0:01:50.1]} 28... Rge8 {[%clk 0:00:27.4]} 29. Qd5 {[%clk 0:01:37.8]}
29... Rcd8 {[%clk 0:00:24.2]} 30. Qxd8+ {[%clk 0:01:33.3]} 30... Rxd8 {[%clk
0:00:25.1]} 31. Rxd8+ {[%clk 0:01:32.9]} 31... Kc7 {[%clk 0:00:25.6]} 32. Rad1
{[%clk 0:01:28.5]} 32... Qxc4 {[%clk 0:00:24.1]} 33. e6 {[%clk 0:01:28.5]} 33...
Qe2 {[%clk 0:00:21.5]} 34. R8d7+ {[%clk 0:01:26.6]} 34... Kb6 {[%clk 0:00:20.8]}
35. Rb1+ {[%clk 0:01:09.1]} 35... Kc6 {[%clk 0:00:20.5]} 36. Rdxb7 {[%clk
0:01:05.6]} 36... c4 {[%clk 0:00:20.1]} 37. R7b2 {[%clk 0:00:54.8]} 37... Qe5
{[%clk 0:00:17.1]} 38. Rc2 {[%clk 0:00:52.1]} 38... Qf4 {[%clk 0:00:10.6]} 39.
Rbc1 {[%clk 0:00:51.7]} 39... Kd6 {[%clk 0:00:09.5]} 40. Rxc4 {[%clk 0:00:50.6]}
40... Qe5 {[%clk 0:00:09.6]} 41. Nf7+ {[%clk 0:00:50.4]} 1-0

[Event "Early-Titled-Tuesday-Blitz-February-13-2024"]
[Site "Chess.com"]
[Date "2024.02.13"]
[Round "9"]
[White "karinachess1"]
[Black "ccccvhhhj"]
[Result "1-0"]
[WhiteElo "2664"]
[BlackElo "2490"]
[TimeControl "180+1"]
[EndTime "9:47:52 PST"]
[Termination "karinachess1 won on time"]

1. d4 {[%clk 0:03:00.9]} 1... e5 {[%clk 0:02:59]} 2. dxe5 {[%clk 0:02:54.7]}
2... d6 {[%clk 0:02:59.6]} 3. Nf3 {[%clk 0:02:50.5]} 3... Bg4 {[%clk 0:02:59.2]}
4. e3 {[%clk 0:02:48.8]} 4... Nc6 {[%clk 0:02:58.6]} 5. Bb5 {[%clk 0:02:43.6]}
5... Qd7 {[%clk 0:02:53.5]} 6. h3 {[%clk 0:02:15.9]} 6... Bh5 {[%clk 0:02:46.6]}
7. O-O {[%clk 0:02:12.9]} 7... O-O-O {[%clk 0:02:27.3]} 8. Qd5 {[%clk
0:02:10.6]} 8... Nge7 {[%clk 0:02:20.4]} 9. Bxc6 {[%clk 0:02:01.2]} 9... bxc6
{[%clk 0:01:41.6]} 10. Qe4 {[%clk 0:01:14]} 10... d5 {[%clk 0:01:21.5]} 11. Qf4
{[%clk 0:01:13.9]} 11... Ng6 {[%clk 0:01:14]} 12. Qg3 {[%clk 0:01:10.9]} 12...
Bxf3 {[%clk 0:01:13.5]} 13. Qxf3 {[%clk 0:01:11.8]} 13... Nxe5 {[%clk
0:01:13.1]} 14. Qf4 {[%clk 0:01:09.1]} 14... Bd6 {[%clk 0:01:09.9]} 15. Nd2
{[%clk 0:00:48]} 15... g5 {[%clk 0:01:05]} 16. Qa4 {[%clk 0:00:45.5]} 16... Qf5
{[%clk 0:00:46.7]} 17. Nb3 {[%clk 0:00:27.6]} 17... g4 {[%clk 0:00:27.9]} 18.
Qa6+ {[%clk 0:00:27.2]} 18... Kd7 {[%clk 0:00:28.1]} 19. Nd4 {[%clk 0:00:27.4]}
19... Qg6 {[%clk 0:00:24.7]} 20. h4 {[%clk 0:00:25.2]} 20... g3 {[%clk
0:00:18.8]} 21. f4 {[%clk 0:00:23.5]} 21... Bc5 {[%clk 0:00:08.2]} 22. fxe5
{[%clk 0:00:19.3]} 22... Bxd4 {[%clk 0:00:04.6]} 23. exd4 {[%clk 0:00:20.2]}
23... Qg4 {[%clk 0:00:03.6]} 24. Bg5 {[%clk 0:00:18.5]} 24... Qxd4+ {[%clk
0:00:02]} 25. Kh1 {[%clk 0:00:18.7]} 1-0

[Event "Early-Titled-Tuesday-Blitz-February-13-2024"]
[Site "Chess.com"]
[Date "2024.02.13"]
[Round "9"]
[White "Qingdom"]
[Black "UK_23"]
[Result "0-1"]
[WhiteElo "2174"]
[BlackElo "2365"]
[TimeControl "180+1"]
[EndTime "9:47:52 PST"]
[Termination "UK_23 won by checkmate"]

1. d4 {[%clk 0:03:00.9]} 1... d5 {[%clk 0:02:46.6]} 2. c4 {[%clk 0:03:00.4]}
2... e6 {[%clk 0:02:46.8]} 3. Nc3 {[%clk 0:02:59.8]} 3... Nf6 {[%clk 0:02:46.5]}
4. cxd5 {[%clk 0:02:59.7]} 4... exd5 {[%clk 0:02:35.7]} 5. Bg5 {[%clk
0:02:58.8]} 5... Be7 {[%clk 0:02:35.3]} 6. e3 {[%clk 0:02:58.5]} 6... O-O {[%clk
0:02:35.5]} 7. Bd3 {[%clk 0:02:58.5]} 7... Re8 {[%clk 0:02:34.6]} 8. Nge2 {[%clk
0:02:58.4]} 8... c6 {[%clk 0:02:28.8]} 9. O-O {[%clk 0:02:58.1]} 9... h6 {[%clk
0:02:27.2]} 10. Bxf6 {[%clk 0:02:57.4]} 10... Bxf6 {[%clk 0:02:27.1]} 11. Qc2
{[%clk 0:02:57.5]} 11... Nd7 {[%clk 0:02:24]} 12. Rab1 {[%clk 0:02:56]} 12... a5
{[%clk 0:02:20.1]} 13. a3 {[%clk 0:02:55.4]} 13... b5 {[%clk 0:02:17.6]} 14.
Rfc1 {[%clk 0:02:52.8]} 14... Nb6 {[%clk 0:02:15.2]} 15. a4 {[%clk 0:02:47.9]}
15... b4 {[%clk 0:02:14.5]} 16. Na2 {[%clk 0:02:42]} 16... Bd7 {[%clk
0:02:14.7]} 17. b3 {[%clk 0:02:41.1]} 17... Be7 {[%clk 0:02:04.9]} 18. Bf5
{[%clk 0:02:40]} 18... Rc8 {[%clk 0:01:57.4]} 19. Rd1 {[%clk 0:02:38.9]} 19...
Bd6 {[%clk 0:01:55.3]} 20. Bxd7 {[%clk 0:02:35.1]} 20... Qxd7 {[%clk 0:01:55.4]}
21. Nac1 {[%clk 0:02:35]} 21... Qg4 {[%clk 0:01:48.5]} 22. Nd3 {[%clk
0:02:33.3]} 22... Nd7 {[%clk 0:01:30.9]} 23. Rbc1 {[%clk 0:02:26.4]} 23... Nf6
{[%clk 0:01:28.8]} 24. Ng3 {[%clk 0:02:25.7]} 24... g6 {[%clk 0:01:26.9]} 25.
Nc5 {[%clk 0:02:23.7]} 25... h5 {[%clk 0:01:22.9]} 26. Nb7 {[%clk 0:02:23.1]}
26... Bc7 {[%clk 0:01:19.2]} 27. Qe2 {[%clk 0:02:17.9]} 27... Qg5 {[%clk
0:01:10]} 28. Qf3 {[%clk 0:02:10.6]} 28... h4 {[%clk 0:01:08.2]} 29. Nf1 {[%clk
0:02:09.6]} 29... Ne4 {[%clk 0:01:01.1]} 30. Kh1 {[%clk 0:01:58.4]} 30... Re6
{[%clk 0:00:58.1]} 31. Qe2 {[%clk 0:01:44.6]} 31... Re5 {[%clk 0:00:57.3]} 32.
dxe5 {[%clk 0:01:38.1]} 32... Qxe5 {[%clk 0:00:56.6]} 33. f4 {[%clk 0:01:38.2]}
33... Qf5 {[%clk 0:00:54.8]} 34. Rxc6 {[%clk 0:01:33]} 34... Nc3 {[%clk
0:00:50.6]} 35. Rxc3 {[%clk 0:01:32.5]} 35... bxc3 {[%clk 0:00:51.5]} 36. Qd3
{[%clk 0:01:28.6]} 36... Qg4 {[%clk 0:00:49.9]} 37. Rc1 {[%clk 0:01:27.7]} 37...
h3 {[%clk 0:00:45.8]} 38. gxh3 {[%clk 0:01:25]} 38... Qf3+ {[%clk 0:00:43.2]}
39. Kg1 {[%clk 0:01:24.4]} 39... Bb6 {[%clk 0:00:40.1]} 40. Rxc3 {[%clk
0:01:15.4]} 40... Rxc3 {[%clk 0:00:39.6]} 41. Qxc3 {[%clk 0:01:15.6]} 41... d4
{[%clk 0:00:40.2]} 42. Qc8+ {[%clk 0:00:58.6]} 42... Kg7 {[%clk 0:00:40]} 43.
Nd6 {[%clk 0:00:54.9]} 43... dxe3 {[%clk 0:00:34.5]} 44. Ne8+ {[%clk 0:00:52.1]}
44... Kh6 {[%clk 0:00:30]} 45. Qg4 {[%clk 0:00:31.4]} 45... e2+ {[%clk 0:00:28]}
46. Ne3 {[%clk 0:00:31]} 46... Bxe3# {[%clk 0:00:28]} 0-1

[Event "Early-Titled-Tuesday-Blitz-February-13-2024"]
[Site "Chess.com"]
[Date "2024.02.13"]
[Round "9"]
[White "GOGIEFF"]
[Black "kleinebeer98"]
[Result "1-0"]
[WhiteElo "3033"]
[BlackElo "2869"]
[TimeControl "180+1"]
[EndTime "9:47:54 PST"]
[Termination "GOGIEFF won on time"]

1. c4 {[%clk 0:03:00.9]} 1... e5 {[%clk 0:02:59.2]} 2. d3 {[%clk 0:03:01]} 2...
Nf6 {[%clk 0:02:59.4]} 3. Nf3 {[%clk 0:03:00.9]} 3... Nc6 {[%clk 0:02:59.2]} 4.
a3 {[%clk 0:03:01.4]} 4... d5 {[%clk 0:02:58.8]} 5. cxd5 {[%clk 0:03:01.2]} 5...
Nxd5 {[%clk 0:02:59.6]} 6. e3 {[%clk 0:03:01.7]} 6... Be7 {[%clk 0:02:56.9]} 7.
Be2 {[%clk 0:02:59.2]} 7... g5 {[%clk 0:02:56.1]} 8. b4 {[%clk 0:02:56]} 8... g4
{[%clk 0:02:54.5]} 9. Nfd2 {[%clk 0:02:56]} 9... h5 {[%clk 0:02:49.2]} 10. Bb2
{[%clk 0:02:54.9]} 10... a6 {[%clk 0:02:44.4]} 11. Nc3 {[%clk 0:02:54.6]} 11...
Nxc3 {[%clk 0:02:38.6]} 12. Bxc3 {[%clk 0:02:54.3]} 12... Be6 {[%clk 0:02:28.8]}
13. O-O {[%clk 0:02:49.5]} 13... Qd5 {[%clk 0:02:23.2]} 14. Rb1 {[%clk
0:02:37.8]} 14... O-O-O {[%clk 0:02:19]} 15. a4 {[%clk 0:02:32.2]} 15... f5
{[%clk 0:01:34.1]} 16. b5 {[%clk 0:02:30]} 16... axb5 {[%clk 0:01:32.6]} 17.
Rxb5 {[%clk 0:02:22.3]} 17... Qd7 {[%clk 0:01:19.6]} 18. Qb1 {[%clk 0:02:19.2]}
18... b6 {[%clk 0:01:17.6]} 19. a5 {[%clk 0:02:15.8]} 19... Bc5 {[%clk
0:01:05.8]} 20. d4 {[%clk 0:01:41.6]} 20... exd4 {[%clk 0:00:43.4]} 21. Rxc5
{[%clk 0:01:41.7]} 21... dxc3 {[%clk 0:00:44]} 22. Rxc3 {[%clk 0:01:10.1]} 22...
Qxd2 {[%clk 0:00:32.3]} 23. Rxc6 {[%clk 0:01:08.7]} 23... Bd5 {[%clk 0:00:33]}
24. Qxf5+ {[%clk 0:00:56.9]} 24... Kb8 {[%clk 0:00:16.8]} 25. Rc2 {[%clk
0:00:44.6]} 25... Qxa5 {[%clk 0:00:17.2]} 26. Rfc1 {[%clk 0:00:42.4]} 26... Rc8
{[%clk 0:00:07]} 27. Rc5 {[%clk 0:00:32.5]} 27... bxc5 {[%clk 0:00:04.1]} 28.
Qxd5 {[%clk 0:00:32.4]} 28... c6 {[%clk 0:00:03.1]} 29. Qe5+ {[%clk 0:00:28]}
29... Kb7 {[%clk 0:00:02.4]} 30. Rb1+ {[%clk 0:00:26.7]} 30... Ka7 {[%clk
0:00:02]} 31. Ra1 {[%clk 0:00:27]} 1-0

[Event "Early-Titled-Tuesday-Blitz-February-13-2024"]
[Site "Chess.com"]
[Date "2024.02.13"]
[Round "9"]
[White "Aslanov_Umid"]
[Black "SouS007"]
[Result "1-0"]
[WhiteElo "2675"]
[BlackElo "2495"]
[TimeControl "180+1"]
[EndTime "9:47:55 PST"]
[Termination "Aslanov_Umid won by resignation"]

1. e4 {[%clk 0:03:00.9]} 1... e6 {[%clk 0:03:00.2]} 2. d4 {[%clk 0:02:58.5]}
2... d5 {[%clk 0:03:00.4]} 3. Nd2 {[%clk 0:02:59]} 3... dxe4 {[%clk 0:03:00.6]}
4. Nxe4 {[%clk 0:02:59.9]} 4... Bd7 {[%clk 0:03:01.2]} 5. Nf3 {[%clk 0:02:59.7]}
5... Bc6 {[%clk 0:03:01.5]} 6. Bd3 {[%clk 0:03:00.4]} 6... Nd7 {[%clk
0:03:01.8]} 7. O-O {[%clk 0:03:00.7]} 7... Ngf6 {[%clk 0:03:01.8]} 8. Ned2
{[%clk 0:03:01.1]} 8... Be7 {[%clk 0:03:00.2]} 9. Re1 {[%clk 0:03:01.5]} 9...
O-O {[%clk 0:03:00.2]} 10. c4 {[%clk 0:02:57.8]} 10... b6 {[%clk 0:02:57.2]} 11.
Qe2 {[%clk 0:02:57.8]} 11... Bb7 {[%clk 0:02:56.1]} 12. b3 {[%clk 0:02:49.8]}
12... c5 {[%clk 0:02:55.2]} 13. Bb2 {[%clk 0:02:50.3]} 13... cxd4 {[%clk
0:02:52.8]} 14. Nxd4 {[%clk 0:02:46.8]} 14... Nc5 {[%clk 0:02:50.9]} 15. Bc2
{[%clk 0:02:47.4]} 15... Qc7 {[%clk 0:02:38]} 16. Rad1 {[%clk 0:02:41.1]} 16...
Rad8 {[%clk 0:02:29.2]} 17. N2f3 {[%clk 0:02:35]} 17... Be4 {[%clk 0:02:19.4]}
18. b4 {[%clk 0:02:25.2]} 18... Bxc2 {[%clk 0:02:18.1]} 19. Qxc2 {[%clk
0:02:26.1]} 19... Ncd7 {[%clk 0:02:06.2]} 20. a3 {[%clk 0:02:23.6]} 20... Rc8
{[%clk 0:02:02.9]} 21. Rc1 {[%clk 0:02:21.9]} 21... Qb7 {[%clk 0:02:01.9]} 22.
Nf5 {[%clk 0:01:58]} 22... Bxb4 {[%clk 0:01:42.9]} 23. Nh6+ {[%clk 0:01:32]}
23... gxh6 {[%clk 0:01:38.6]} 24. axb4 {[%clk 0:01:32.9]} 24... b5 {[%clk
0:01:26.1]} 25. Qd2 {[%clk 0:01:18.7]} 25... bxc4 {[%clk 0:00:41.7]} 26. Qxh6
{[%clk 0:01:18.1]} 26... c3 {[%clk 0:00:36.6]} 27. Bxc3 {[%clk 0:01:08.2]} 27...
Rxc3 {[%clk 0:00:36.3]} 28. Rxc3 {[%clk 0:01:09.1]} 28... Qxb4 {[%clk
0:00:36.7]} 29. Rd3 {[%clk 0:01:00.9]} 29... Qc5 {[%clk 0:00:26.9]} 30. h4
{[%clk 0:00:39.2]} 30... Rd8 {[%clk 0:00:20.9]} 31. Ng5 {[%clk 0:00:32.5]} 31...
Qxf2+ {[%clk 0:00:16.5]} 32. Kxf2 {[%clk 0:00:32.3]} 32... Ng4+ {[%clk 0:00:17]}
33. Kg1 {[%clk 0:00:30]} 33... Nxh6 {[%clk 0:00:17.9]} 34. Red1 {[%clk
0:00:30.6]} 34... f6 {[%clk 0:00:18.5]} 35. Nh3 {[%clk 0:00:24.8]} 1-0

[Event "Early-Titled-Tuesday-Blitz-February-13-2024"]
[Site "Chess.com"]
[Date "2024.02.13"]
[Round "9"]
[White "bylavochka"]
[Black "LeoLV10"]
[Result "0-1"]
[WhiteElo "2318"]
[BlackElo "2520"]
[TimeControl "180+1"]
[EndTime "9:47:55 PST"]
[Termination "LeoLV10 won on time"]

1. e4 {[%clk 0:03:00.1]} 1... c6 {[%clk 0:02:59]} 2. d4 {[%clk 0:03:00.1]} 2...
d5 {[%clk 0:02:59.9]} 3. Nc3 {[%clk 0:02:59.6]} 3... dxe4 {[%clk 0:02:57.6]} 4.
Nxe4 {[%clk 0:03:00.5]} 4... Nf6 {[%clk 0:02:58.2]} 5. Nxf6+ {[%clk 0:02:55.2]}
5... exf6 {[%clk 0:02:59.1]} 6. Nf3 {[%clk 0:02:54.2]} 6... Bd6 {[%clk
0:02:57.5]} 7. Be2 {[%clk 0:02:52.5]} 7... O-O {[%clk 0:02:57.1]} 8. O-O {[%clk
0:02:52]} 8... Re8 {[%clk 0:02:57.5]} 9. h3 {[%clk 0:02:47.8]} 9... Nd7 {[%clk
0:02:57.5]} 10. c3 {[%clk 0:02:32.2]} 10... Nf8 {[%clk 0:02:57.5]} 11. Re1
{[%clk 0:02:28.7]} 11... Bf5 {[%clk 0:02:56.4]} 12. Qb3 {[%clk 0:02:22.1]} 12...
Qd7 {[%clk 0:02:54.8]} 13. Bd2 {[%clk 0:02:22.2]} 13... Rad8 {[%clk 0:02:53.4]}
14. Bc4 {[%clk 0:02:19.8]} 14... b5 {[%clk 0:02:50.8]} 15. Bf1 {[%clk
0:02:16.1]} 15... Bb8 {[%clk 0:02:45.3]} 16. g3 {[%clk 0:01:51.7]} 16... Bxh3
{[%clk 0:02:37.7]} 17. Rxe8 {[%clk 0:01:46.4]} 17... Rxe8 {[%clk 0:02:37.1]} 18.
Re1 {[%clk 0:01:47.3]} 18... Bxf1 {[%clk 0:02:24.2]} 19. Rxe8 {[%clk 0:01:44.6]}
19... Qxe8 {[%clk 0:02:04.6]} 20. Kxf1 {[%clk 0:01:42.1]} 20... Qe4 {[%clk
0:02:04.6]} 21. Qd1 {[%clk 0:01:34.5]} 21... h5 {[%clk 0:02:02.8]} 22. Kg1
{[%clk 0:01:13.8]} 22... Ne6 {[%clk 0:02:00.7]} 23. Nh4 {[%clk 0:00:30.5]} 23...
g6 {[%clk 0:01:57.6]} 24. Qe1 {[%clk 0:00:26]} 24... Qd5 {[%clk 0:01:54.9]} 25.
b3 {[%clk 0:00:24.3]} 25... Kg7 {[%clk 0:01:46.6]} 26. Qe3 {[%clk 0:00:20.1]}
26... Ng5 {[%clk 0:01:34.7]} 27. Qe8 {[%clk 0:00:18]} 27... Bc7 {[%clk
0:01:27.2]} 28. Bxg5 {[%clk 0:00:10.1]} 28... fxg5 {[%clk 0:01:27.4]} 29. Ng2
{[%clk 0:00:11]} 29... a5 {[%clk 0:01:22.2]} 30. Qe7 {[%clk 0:00:07.8]} 30...
Bd6 {[%clk 0:01:19.9]} 31. Qd8 {[%clk 0:00:08]} 31... a4 {[%clk 0:01:11.8]} 32.
Ne3 {[%clk 0:00:07.6]} 32... Qe6 {[%clk 0:01:12]} 33. Qxg5 {[%clk 0:00:02.3]}
33... Be7 {[%clk 0:00:55.9]} 34. d5 {[%clk 0:00:01.7]} 34... Bxg5 {[%clk
0:00:42.4]} 35. dxe6 {[%clk 0:00:01.9]} 35... fxe6 {[%clk 0:00:43.2]} 36. f4
{[%clk 0:00:02.4]} 36... Bf6 {[%clk 0:00:42.4]} 37. bxa4 {[%clk 0:00:03.3]}
37... bxa4 {[%clk 0:00:41]} 0-1

[Event "Early-Titled-Tuesday-Blitz-February-13-2024"]
[Site "Chess.com"]
[Date "2024.02.13"]
[Round "9"]
[White "JeFumeDesClopes"]
[Black "ValentinDragnev"]
[Result "0-1"]
[WhiteElo "2605"]
[BlackElo "2757"]
[TimeControl "180+1"]
[EndTime "9:47:57 PST"]
[Termination "ValentinDragnev won by checkmate"]

1. Nf3 {[%clk 0:03:00.9]} 1... c5 {[%clk 0:02:57.7]} 2. c4 {[%clk 0:02:58.1]}
2... Nf6 {[%clk 0:02:56.5]} 3. d4 {[%clk 0:02:57.2]} 3... cxd4 {[%clk
0:02:56.1]} 4. Nxd4 {[%clk 0:02:58.1]} 4... b6 {[%clk 0:02:55]} 5. f3 {[%clk
0:02:55.3]} 5... Bb7 {[%clk 0:02:55.4]} 6. e4 {[%clk 0:02:55.6]} 6... e6 {[%clk
0:02:54.7]} 7. Nc3 {[%clk 0:02:54.9]} 7... Nc6 {[%clk 0:02:54.8]} 8. Be3 {[%clk
0:02:52.8]} 8... Bc5 {[%clk 0:02:54]} 9. Qd2 {[%clk 0:02:47.5]} 9... Qe7 {[%clk
0:02:51.9]} 10. Be2 {[%clk 0:02:45.1]} 10... O-O {[%clk 0:02:51.6]} 11. O-O
{[%clk 0:02:45.4]} 11... d5 {[%clk 0:02:33.9]} 12. Nxc6 {[%clk 0:02:27.3]} 12...
Bxc6 {[%clk 0:02:33.2]} 13. e5 {[%clk 0:02:21.5]} 13... Ne4 {[%clk 0:01:47.5]}
14. fxe4 {[%clk 0:01:59.9]} 14... d4 {[%clk 0:01:46.9]} 15. Bxd4 {[%clk
0:02:00.6]} 15... Rad8 {[%clk 0:01:46.6]} 16. Nd5 {[%clk 0:02:01.3]} 16... exd5
{[%clk 0:01:46.7]} 17. exd5 {[%clk 0:01:57.2]} 17... Bxd5 {[%clk 0:01:46.9]} 18.
cxd5 {[%clk 0:01:48.8]} 18... Rxd5 {[%clk 0:01:46.6]} 19. Rf4 {[%clk 0:01:41.5]}
19... Bxd4+ {[%clk 0:01:28.3]} 20. Kh1 {[%clk 0:01:33.8]} 20... Qxe5 {[%clk
0:01:27.2]} 21. Rd1 {[%clk 0:01:22.2]} 21... Rfd8 {[%clk 0:01:10.5]} 22. Bc4
{[%clk 0:01:11.8]} 22... R5d7 {[%clk 0:00:46.1]} 23. Rdf1 {[%clk 0:01:00]} 23...
Rf8 {[%clk 0:00:23.4]} 24. Rd1 {[%clk 0:00:51.2]} 24... Bxb2 {[%clk 0:00:19]}
25. Qxd7 {[%clk 0:00:22.1]} 25... Qxf4 {[%clk 0:00:19.1]} 26. Bb3 {[%clk
0:00:15.8]} 26... Be5 {[%clk 0:00:18.5]} 27. Qh3 {[%clk 0:00:15.6]} 27... g6
{[%clk 0:00:16.1]} 28. Qf3 {[%clk 0:00:10.8]} 28... Qxh2# {[%clk 0:00:13.7]} 0-1

[Event "Early-Titled-Tuesday-Blitz-February-13-2024"]
[Site "Chess.com"]
[Date "2024.02.13"]
[Round "9"]
[White "SlavenPastar"]
[Black "GrumbleBruno"]
[Result "1-0"]
[WhiteElo "2608"]
[BlackElo "2463"]
[TimeControl "180+1"]
[EndTime "9:47:59 PST"]
[Termination "SlavenPastar won on time"]

1. b3 {[%clk 0:03:00.9]} 1... e5 {[%clk 0:02:58.5]} 2. Bb2 {[%clk 0:03:01.1]}
2... Nc6 {[%clk 0:02:58.6]} 3. Nf3 {[%clk 0:03:01.5]} 3... e4 {[%clk 0:02:53.8]}
4. Nd4 {[%clk 0:03:01.2]} 4... Nxd4 {[%clk 0:02:53.4]} 5. Bxd4 {[%clk
0:03:02.1]} 5... Nf6 {[%clk 0:02:53.8]} 6. e3 {[%clk 0:03:01.8]} 6... Be7 {[%clk
0:02:52.5]} 7. c4 {[%clk 0:03:01]} 7... O-O {[%clk 0:02:50.9]} 8. Nc3 {[%clk
0:02:58]} 8... c6 {[%clk 0:02:49.8]} 9. Qc2 {[%clk 0:02:49.5]} 9... d5 {[%clk
0:02:48.7]} 10. cxd5 {[%clk 0:02:47.1]} 10... cxd5 {[%clk 0:02:48.7]} 11. Rc1
{[%clk 0:02:40.2]} 11... Be6 {[%clk 0:02:38.4]} 12. Be2 {[%clk 0:02:35.3]} 12...
Rc8 {[%clk 0:02:24.7]} 13. O-O {[%clk 0:02:32.8]} 13... Qa5 {[%clk 0:02:21.7]}
14. d3 {[%clk 0:02:18.2]} 14... Ba3 {[%clk 0:01:58.7]} 15. Rb1 {[%clk
0:01:50.6]} 15... Bb4 {[%clk 0:01:55.2]} 16. Rfc1 {[%clk 0:01:48.7]} 16... Ba3
{[%clk 0:01:26.1]} 17. b4 {[%clk 0:01:26.3]} 17... Bxb4 {[%clk 0:01:10.1]} 18.
Qb3 {[%clk 0:01:24.3]} 18... Bxc3 {[%clk 0:00:58]} 19. Bxc3 {[%clk 0:01:06.1]}
19... Qd8 {[%clk 0:00:44.4]} 20. Qxb7 {[%clk 0:01:03]} 20... exd3 {[%clk
0:00:33.9]} 21. Bxd3 {[%clk 0:01:00.6]} 21... Ne4 {[%clk 0:00:33.1]} 22. Bd4
{[%clk 0:00:47.7]} 22... Nd2 {[%clk 0:00:19.6]} 23. Ra1 {[%clk 0:00:36.4]} 23...
Nc4 {[%clk 0:00:08]} 24. Qxa7 {[%clk 0:00:29.5]} 24... Ra8 {[%clk 0:00:07.4]}
25. Qc5 {[%clk 0:00:26.5]} 25... Qd7 {[%clk 0:00:05.7]} 26. Qb4 {[%clk
0:00:24.3]} 26... Rfb8 {[%clk 0:00:05.1]} 27. Qc3 {[%clk 0:00:25]} 27... f6
{[%clk 0:00:03.9]} 28. e4 {[%clk 0:00:19.6]} 1-0

[Event "Early-Titled-Tuesday-Blitz-February-13-2024"]
[Site "Chess.com"]
[Date "2024.02.13"]
[Round "9"]
[White "PushingpawnsNYC"]
[Black "HalfIsCrayfish"]
[Result "1-0"]
[WhiteElo "2341"]
[BlackElo "2535"]
[TimeControl "180+1"]
[EndTime "9:47:59 PST"]
[Termination "PushingpawnsNYC won by checkmate"]

1. e4 {[%clk 0:03:00.9]} 1... c5 {[%clk 0:02:59.3]} 2. Nc3 {[%clk 0:02:59.4]}
2... Nc6 {[%clk 0:02:59.7]} 3. Bb5 {[%clk 0:02:59.5]} 3... Nd4 {[%clk
0:02:59.6]} 4. Nf3 {[%clk 0:02:59.7]} 4... Nxb5 {[%clk 0:02:58]} 5. Nxb5 {[%clk
0:03:00.6]} 5... d5 {[%clk 0:02:56.1]} 6. exd5 {[%clk 0:03:00.2]} 6... Nf6
{[%clk 0:02:56.7]} 7. d4 {[%clk 0:03:00]} 7... cxd4 {[%clk 0:02:51]} 8. Qxd4
{[%clk 0:02:57.6]} 8... g6 {[%clk 0:02:49.4]} 9. O-O {[%clk 0:02:22.5]} 9... Bg7
{[%clk 0:02:48.9]} 10. Bf4 {[%clk 0:02:20.1]} 10... O-O {[%clk 0:02:40.2]} 11.
Nc3 {[%clk 0:02:11.8]} 11... Bf5 {[%clk 0:02:29.8]} 12. Be5 {[%clk 0:02:08.7]}
12... Bxc2 {[%clk 0:02:24]} 13. Rac1 {[%clk 0:02:07.4]} 13... Bf5 {[%clk
0:02:23.2]} 14. Rfd1 {[%clk 0:02:07.7]} 14... Ne8 {[%clk 0:02:15.6]} 15. h3
{[%clk 0:02:05.1]} 15... Rc8 {[%clk 0:02:09.3]} 16. Bxg7 {[%clk 0:01:57.8]}
16... Nxg7 {[%clk 0:02:08.8]} 17. Qxa7 {[%clk 0:01:58.4]} 17... Qd6 {[%clk
0:01:59.6]} 18. Rd4 {[%clk 0:01:38.9]} 18... b6 {[%clk 0:01:08.4]} 19. Re1
{[%clk 0:01:25.4]} 19... Rc7 {[%clk 0:01:03.8]} 20. Qa6 {[%clk 0:01:20.8]} 20...
Bd7 {[%clk 0:01:00.2]} 21. Qe2 {[%clk 0:01:12.4]} 21... Nf5 {[%clk 0:00:59.4]}
22. Rdd1 {[%clk 0:01:09.6]} 22... Re8 {[%clk 0:00:49.9]} 23. g4 {[%clk
0:00:40.9]} 23... Ng7 {[%clk 0:00:45.7]} 24. Qe3 {[%clk 0:00:14.2]} 24... Qb4
{[%clk 0:00:44.7]} 25. Qh6 {[%clk 0:00:12.8]} 25... Qxb2 {[%clk 0:00:41.4]} 26.
Ng5 {[%clk 0:00:12.3]} 26... e6 {[%clk 0:00:16.3]} 27. d6 {[%clk 0:00:10.4]}
27... Nf5 {[%clk 0:00:05.9]} 28. Qxh7+ {[%clk 0:00:10.3]} 28... Kf8 {[%clk
0:00:06.3]} 29. Qxf7# {[%clk 0:00:10.7]} 1-0